[Event "ESP-chT Primera Division 2019"]
[Site "Linares"]
[Date "2019.08.30"]
[Round "5.3"]
[White "Fernandez Gonzalez, Juan Carlos"]
[Black "Rubio Mejia, Luis Ignacio"]
[Result "0-1"]
[ECO "E11"]
[WhiteElo "2396"]
[BlackElo "2435"]
[Annotator "NA"]
[PlyCount "84"]
[EventDate "2019.08.26"]
[EventType "team-tourn"]
[EventCountry "ESP"]
[SourceTitle "playchess.com"]
[Source "ChessBase"]
[SourceQuality "1"]
[TimeControl "5400+30"]

1. d4 {[%emt 0:00:00]} Nf6 {[%emt 0:00:00]} 2. c4 {[%emt 0:00:00]} e6 {[%emt 0:00:00]} 3. Nf3 {[%emt 0:00:00]} Bb4+ {[%emt 0:00:00]} 4. Bd2 {[%emt 0:00:00]} a5 {[%emt 0:00:00]} 5. a3 {[%emt 0:00:37]} Bxd2+ {[%emt 0:00:14]} 6. Qxd2 {[%emt 0:00:17]} b6 {[%emt 0:00:42]} 7. g3 {[%emt 0:00:37]} Bb7 {[%emt 0:00:20]} 8. Bg2 {[%emt 0:00:39]} O-O {[%emt 0:04:38]} 9. O-O {[%emt 0:00:29]} d6 {[%emt 0:01:15]} 10. Nc3 {[%emt 0:01:14]} Ne4 {[%emt 0:08:48]} 11. Qc2 {[%emt 0:04:17]} Nxc3 {[%emt 0:01:34]} 12. Qxc3 {[%emt 0:00:58]} a4 {[%emt 0:09:14]} 13. c5 {[%emt 0:12:28]} bxc5 {[%emt 0:06:36]} 14. dxc5 {[%emt 0:00:09]} d5 {[%emt 0:02:27]} 15. Rfd1 {[%emt 0:05:16]} Qf6 {[%emt 0:05:56]} 16. Qb4 {[%emt 0:13:19]} Ra7 {[%emt 0:10:47]} 17. Qd2 {[%emt 0:14:40]} Nc6 {[%emt 0:06:42]} 18. Rab1 {[%emt 0:05:01]} Ba6 {[%emt 0:16:56]} 19. e4 {[%emt 0:06:42]} Bc4 {[%emt 0:04:27]} 20. exd5 {[%emt 0:03:19]} exd5 {[%emt 0:03:22]} 21. Re1 {[%emt 0:05:07]} h6 {[%emt 0:03:20]} 22. Qe3 {[%emt 0:02:56]} Rb7 {[%emt 0:03:14]} 23. Nd2 {[%emt 0:02:22]} Ba2 {[%emt 0:01:16]} 24. Rbd1 {[%emt 0:04:02]} Rxb2 {[%emt 0:01:25]} 25. Qd3 {[%emt 0:03:10]} Bb3 {[%emt 0:03:15]} 26. Rc1 {[%emt 0:02:00]} Nd4 {[%emt 0:01:56]} 27. Nf3 {[%emt 0:06:19]} Ne6 {[%emt 0:02:38]} 28. c6 {[%emt 0:03:03]} Rd8 {[%emt 0:01:42]} 29. h4 {[%emt 0:03:17]} Rd6 {[%emt 0:00:57]} 30. Qe3 {[%emt 0:01:19]} d4 {[%emt 0:00:33]} 31. Qe5 {[%emt 0:00:06]} Qxe5 {[%emt 0:00:28]} 32. Nxe5 {[%emt 0:00:01]} d3 {[%emt 0:00:10]} 33. Nc4 {[%emt 0:01:14]} Bxc4 {[%emt 0:00:04]} 34. Rxc4 {[%emt 0:00:04]} d2 {[%emt 0:01:00]} 35. Rd1 {[%emt 0:00:20]} Rd4 {[%emt 0:00:09]} 36. Rc3 {[%emt 0:00:49]} Kf8 {[%emt 0:00:34]} 37. Kf1 {[%emt 0:00:33]} Ke7 {[%emt 0:00:24]} 38. Ke2 {[%emt 0:00:37]} Rd6 {[%emt 0:01:02]} 39. Re3 {[%emt 0:00:38]} Kd8 {[%emt 0:00:29]} 40. Rd3 {[%emt 0:01:13]} Nd4+ {[%emt 0:00:36]} 41. Kf1 {[%emt 0:00:12]} Nb5 {[%emt 0:00:36]} 42. Rxd6+ {[%emt 0:00:21]} cxd6 {[%emt 0:00:07]} 0-1

[Event "ESP-chT Primera Division 2019"]
[Site "Linares"]
[Date "2019.08.30"]
[Round "5.4"]
[White "Almagro Llamas, Pablo"]
[Black "Vaya Gomez, Alejandro"]
[Result "1-0"]
[ECO "B06"]
[WhiteElo "2453"]
[BlackElo "2032"]
[Annotator "ChessBase"]
[PlyCount "45"]
[EventDate "2019.08.26"]
[EventType "team-tourn"]
[EventCountry "ESP"]
[SourceTitle "playchess.com"]
[Source "ChessBase"]
[SourceQuality "1"]
[TimeControl "5400+30"]

1. d4 {[%emt 0:00:00]} g6 {[%emt 0:00:00]} 2. e4 {[%emt 0:00:00]} Bg7 {[%emt 0:00:00]} 3. Nc3 {[%emt 0:00:24]} d6 {[%emt 0:00:04]} 4. Be3 {[%emt 0:00:16]} Nc6 {[%emt 0:00:37]} 5. d5 {[%emt 0:05:33]} Nb8 {[%emt 0:00:30]} 6. Bd4 {[%emt 0:02:23]} Nf6 {[%emt 0:00:43]} 7. f3 {[%emt 0:04:08]} c6 {[%emt 0:03:48]} 8. Nge2 {[%emt 0:04:46]} O-O {[%emt 0:03:56]} 9. Qd2 {[%emt 0:03:52]} a6 {[%emt 0:24:31]} 10. a4 {[%emt 0:01:26]} a5 {[%emt 0:00:48]} 11. Ng3 {[%emt 0:02:25]} Na6 {[%emt 0:01:16]} 12. Bc4 {[%emt 0:04:10]} Nb4 {[%emt 0:02:14]} 13. Bb3 {[%emt 0:09:14]} h6 {[%emt 0:28:56]} 14. O-O {[%emt 0:01:15]} Nd7 {[%emt 0:00:14]} 15. Bxg7 {[%emt 0:01:09]} Kxg7 {[%emt 0:00:05]} 16. f4 {[%emt 0:02:01]} cxd5 {[%emt 0:06:20]} 17. exd5 {[%emt 0:00:44]} Nf6 {[%emt 0:02:39]} 18. Rae1 {[%emt 0:00:59]} Re8 {[%emt 0:00:49]} 19. f5 {[%emt 0:04:47]} Qb6+ {[%emt 0:02:06]} 20. Kh1 {[%emt 0:00:23]} g5 {[%emt 0:00:11]} 21. Nce4 {[%emt 0:01:36]} Nxe4 {[%emt 0:01:51]} 22. Rxe4 {[%emt 0:00:47]} Na6 {[%emt 0:11:52]} 23. Nh5+ {[%emt 0:05:10]} 1-0

[Event "ESP-chT Primera Division 2019"]
[Site "Linares"]
[Date "2019.08.30"]
[Round "5.5"]
[White "Iglesias Ferreira, Andres"]
[Black "Cabrera Trujillo, Jorge"]
[Result "1-0"]
[ECO "B06"]
[WhiteElo "1845"]
[BlackElo "2308"]
[Annotator "NA"]
[PlyCount "87"]
[EventDate "2019.08.26"]
[EventType "team-tourn"]
[EventCountry "ESP"]
[SourceTitle "playchess.com"]
[Source "ChessBase"]
[SourceQuality "1"]
[TimeControl "5400+30"]

1. e4 {[%emt 0:00:00]} g6 {[%emt 0:00:00]} 2. d4 {[%emt 0:00:00]} Bg7 {[%emt 0:00:00]} 3. Nc3 {[%emt 0:00:53]} d6 {[%emt 0:00:07]} 4. Be3 {[%emt 0:00:35]} Nd7 {[%emt 0:02:07]} 5. Qd2 {[%emt 0:01:53]} a6 {[%emt 0:00:22]} 6. f3 {[%emt 0:01:59]} e5 {[%emt 0:11:38]} 7. Nge2 {[%emt 0:20:04]} Ngf6 {[%emt 0:03:59]} 8. g4 {[%emt 0:05:17]} h5 {[%emt 0:01:05]} 9. g5 {[%emt 0:05:56]} Nh7 {[%emt 0:00:03]} 10. h4 {[%emt 0:00:20]} b5 {[%emt 0:05:09]} 11. Bh3 {[%emt 0:05:48]} Bb7 {[%emt 0:02:47]} 12. Bxd7+ {[%emt 0:13:27]} Qxd7 {[%emt 0:00:22]} 13. dxe5 {[%emt 0:00:09]} Bxe5 {[%emt 0:03:24]} 14. f4 {[%emt 0:03:20]} Bg7 {[%emt 0:00:49]} 15. O-O-O {[%emt 0:03:02]} f5 {[%emt 0:08:19]} 16. Nd5 {[%emt 0:10:02]} fxe4 {[%emt 0:03:26]} 17. Ng3 {[%emt 0:00:47]} O-O {[%emt 0:03:08]} 18. f5 {[%emt 0:06:26]} Be5 {[%emt 0:16:51]} 19. fxg6 {[%emt 0:02:43]} Bxg3 {[%emt 0:09:48]} 20. gxh7+ {[%emt 0:01:37]} Kg7 {[%emt 0:00:57]} 21. Nf6 {[%emt 0:03:19]} Qf7 {[%emt 0:01:47]} 22. Rhg1 {[%emt 0:09:17]} Qxa2 {[%emt 0:03:48]} 23. Qc3 {[%emt 0:01:31]} Be5 {[%emt 0:01:21]} 24. Nxh5+ {[%emt 0:02:55]} Kg6 {[%emt 0:02:55]} 25. Nf4+ {[%emt 0:00:20]} Rxf4 {[%emt 0:00:15]} 26. h5+ {[%emt 0:00:18]} Kg7 {[%emt 0:02:51]} 27. Bd4 {[%emt 0:00:56]} Qe6 {[%emt 0:02:44]} 28. Bxe5+ {[%emt 0:00:13]} Qxe5 {[%emt 0:00:27]} 29. Qxe5+ {[%emt 0:00:41]} dxe5 {[%emt 0:00:01]} 30. Rd7+ {[%emt 0:00:12]} Rf7 {[%emt 0:00:39]} 31. h6+ {[%emt 0:00:11]} Kxh7 {[%emt 0:06:27]} 32. Rxf7+ {[%emt 0:00:15]} Kg6 {[%emt 0:00:06]} 33. Rg7+ {[%emt 0:00:15]} Kf5 {[%emt 0:00:14]} 34. h7 {[%emt 0:00:08]} Bd5 {[%emt 0:00:06]} 35. Rxc7 {[%emt 0:00:15]} Kg6 {[%emt 0:00:41]} 36. Ra7 {[%emt 0:00:57]} Rc8 {[%emt 0:00:39]} 37. Rh1 {[%emt 0:00:23]} Rh8 {[%emt 0:00:25]} 38. Rxa6+ {[%emt 0:00:28]} Kxg5 {[%emt 0:00:02]} 39. Rd6 {[%emt 0:00:30]} Bf7 {[%emt 0:01:22]} 40. Rb6 {[%emt 0:00:24]} Bc4 {[%emt 0:00:14]} 41. b3 {[%emt 0:00:17]} Be2 {[%emt 0:00:02]} 42. Kd2 {[%emt 0:00:41]} Bf3 {[%emt 0:00:18]} 43. Rg1+ {[%emt 0:00:24]} Kf4 {[%emt 0:00:07]} 44. Rf6# {[%emt 0:00:03]} 1-0

[Event "ESP-chT Primera Division 2019"]
[Site "Linares"]
[Date "2019.08.30"]
[Round "5.6"]
[White "Rodrigo Yanguas, Maria"]
[Black "Garcia Elio, Elisa"]
[Result "1-0"]
[ECO "C02"]
[WhiteElo "2079"]
[BlackElo "1812"]
[Annotator "NA"]
[PlyCount "55"]
[EventDate "2019.08.26"]
[EventType "team-tourn"]
[EventCountry "ESP"]
[SourceTitle "playchess.com"]
[Source "ChessBase"]
[SourceQuality "1"]
[TimeControl "5400+30"]

1. e4 {[%emt 0:00:00]} e6 {[%emt 0:00:00]} 2. d4 {[%emt 0:00:00]} d5 {[%emt 0:00:00]} 3. e5 {[%emt 0:00:00]} c5 {[%emt 0:00:14]} 4. c3 {[%emt 0:00:14]} Nc6 {[%emt 0:00:36]} 5. Nf3 {[%emt 0:00:09]} Qb6 {[%emt 0:01:26]} 6. Bd3 {[%emt 0:00:17]} Bd7 {[%emt 0:02:58]} 7. O-O {[%emt 0:00:10]} cxd4 {[%emt 0:10:05]} 8. cxd4 {[%emt 0:00:12]} Nb4 {[%emt 0:10:58]} 9. Nc3 {[%emt 0:04:57]} Nxd3 {[%emt 0:01:44]} 10. Qxd3 {[%emt 0:00:06]} Ne7 {[%emt 0:07:30]} 11. Rd1 {[%emt 0:03:45]} Nf5 {[%emt 0:05:55]} 12. g4 {[%emt 0:01:38]} Nh6 {[%emt 0:06:38]} 13. h3 {[%emt 0:02:07]} Be7 {[%emt 0:05:26]} 14. Ng5 {[%emt 0:05:35]} f5 {[%emt 0:09:31]} 15. exf6 {[%emt 0:03:18]} Bxf6 {[%emt 0:10:39]} 16. Nxh7 {[%emt 0:01:27]} O-O-O {[%emt 0:07:15]} 17. Bxh6 {[%emt 0:06:02]} Bxd4 {[%emt 0:03:54]} 18. Qxd4 {[%emt 0:03:26]} Qxd4 {[%emt 0:03:03]} 19. Rxd4 {[%emt 0:00:05]} Rxh7 {[%emt 0:00:15]} 20. Bg5 {[%emt 0:00:14]} Rf8 {[%emt 0:02:03]} 21. Rc1 {[%emt 0:01:57]} Kb8 22. Bf4+ {[%emt 0:03:20]} Ka8 {[%emt 0:02:00]} 23. Kg2 {[%emt 0:00:34]} Bc6 {[%emt 0:00:38]} 24. Be5 {[%emt 0:01:05]} Rfh8 {[%emt 0:01:57]} 25. Rh1 {[%emt 0:00:11]} Rf8 {[%emt 0:04:08]} 26. a4 {[%emt 0:01:02]} g5 {[%emt 0:00:31]} 27. Rc1 {[%emt 0:03:51]} Rhf7 {[%emt 0:00:47]} 28. Rc2 {[%emt 0:00:57]} 1-0

[Event "ESP-chT Primera Division 2019"]
[Site "Linares"]
[Date "2019.08.30"]
[Round "5.7"]
[White "Alonso Alvarez, Aitor"]
[Black "Delorme, Axel"]
[Result "0-1"]
[ECO "C78"]
[WhiteElo "2305"]
[BlackElo "2489"]
[Annotator "ChessBase"]
[PlyCount "70"]
[EventDate "2019.08.26"]
[EventType "team-tourn"]
[EventCountry "ESP"]
[SourceTitle "playchess.com"]
[Source "ChessBase"]
[SourceQuality "1"]
[TimeControl "5400+30"]

1. e4 {[%emt 0:00:00]} e5 {[%emt 0:00:00]} 2. Nf3 {[%emt 0:00:00]} Nc6 {[%emt 0:00:00]} 3. Bb5 {[%emt 0:00:00]} a6 {[%emt 0:00:00]} 4. Ba4 {[%emt 0:00:00]} Nf6 {[%emt 0:00:00]} 5. O-O {[%emt 0:00:06]} Bc5 {[%emt 0:00:50]} 6. c3 {[%emt 0:09:29]} b5 {[%emt 0:00:15]} 7. Bb3 {[%emt 0:01:34]} d6 {[%emt 0:00:36]} 8. d3 {[%emt 0:06:08]} O-O {[%emt 0:05:20]} 9. Be3 {[%emt 0:00:16]} Bxe3 {[%emt 0:02:15]} 10. fxe3 {[%emt 0:00:06]} Ne7 {[%emt 0:00:43]} 11. Qe1 {[%emt 0:06:17]} Ng6 {[%emt 0:06:25]} 12. Nh4 {[%emt 0:06:17]} Nxh4 {[%emt 0:11:46]} 13. Qxh4 {[%emt 0:00:08]} a5 {[%emt 0:00:03]} 14. a3 {[%emt 0:15:25]} c5 {[%emt 0:15:58]} 15. Nd2 {[%emt 0:00:52]} c4 {[%emt 0:05:58]} 16. dxc4 {[%emt 0:03:07]} Qb6 {[%emt 0:02:06]} 17. cxb5 {[%emt 0:03:27]} a4 {[%emt 0:14:37]} 18. Ba2 {[%emt 0:13:08]} Be6 {[%emt 0:06:42]} 19. Bxe6 {[%emt 0:04:01]} fxe6 {[%emt 0:00:04]} 20. c4 {[%emt 0:06:45]} Qxe3+ {[%emt 0:00:12]} 21. Qf2 {[%emt 0:01:01]} Qd3 {[%emt 0:01:11]} 22. Qe1 {[%emt 0:16:59]} Ng4 {[%emt 0:02:26]} 23. Rxf8+ {[%emt 0:00:30]} Rxf8 {[%emt 0:00:08]} 24. h3 {[%emt 0:00:19]} Qd4+ {[%emt 0:15:09]} 25. Kh1 {[%emt 0:00:02]} Nf2+ {[%emt 0:00:15]} 26. Kh2 {[%emt 0:00:02]} Nd3 {[%emt 0:00:09]} 27. Qh4 {[%emt 0:01:39]} Nf4 {[%emt 0:01:04]} 28. Qe1 {[%emt 0:02:53]} Nd3 {[%emt 0:00:02]} 29. Qh4 {[%emt 0:00:02]} Nc5 {[%emt 0:00:06]} 30. Qe1 {[%emt 0:03:20]} Rf2 {[%emt 0:06:05]} 31. Rd1 {[%emt 0:00:01]} Nd3 {[%emt 0:00:12]} 32. Nf3 {[%emt 0:00:39]} Rxf3 {[%emt 0:01:06]} 33. Rxd3 {[%emt 0:01:23]} Rxd3 {[%emt 0:00:16]} 34. Qa5 {[%emt 0:00:06]} h6 {[%emt 0:00:50]} 35. b6 {[%emt 0:00:21]} Qxe4 {[%emt 0:00:33]} 0-1

[Event "ESP-chT Primera Division 2019"]
[Site "Linares"]
[Date "2019.08.30"]
[Round "5.8"]
[White "Alsina Leal, Daniel"]
[Black "Andres Gonzalez, Ivan"]
[Result "1-0"]
[ECO "B90"]
[WhiteElo "2477"]
[BlackElo "2284"]
[Annotator "ChessBase"]
[PlyCount "73"]
[EventDate "2019.08.26"]
[EventType "team-tourn"]
[EventCountry "ESP"]
[SourceTitle "playchess.com"]
[Source "ChessBase"]
[SourceQuality "1"]
[TimeControl "5400+30"]

1. e4 {[%emt 0:00:00]} c5 {[%emt 0:00:00]} 2. Nf3 {[%emt 0:00:00]} d6 {[%emt 0:00:03]} 3. d4 {[%emt 0:00:00]} cxd4 {[%emt 0:00:29]} 4. Nxd4 {[%emt 0:00:00]} Nf6 {[%emt 0:01:00]} 5. Nc3 {[%emt 0:00:00]} a6 {[%emt 0:00:44]} 6. Bd3 {[%emt 0:01:39]} e5 {[%emt 0:04:15]} 7. Nde2 {[%emt 0:00:05]} Be7 {[%emt 0:02:37]} 8. O-O {[%emt 0:00:12]} Be6 {[%emt 0:01:45]} 9. f4 {[%emt 0:05:02]} Qc7 {[%emt 0:07:56]} 10. Kh1 {[%emt 0:15:33]} Nbd7 {[%emt 0:04:15]} 11. f5 {[%emt 0:09:52]} Bc4 {[%emt 0:01:01]} 12. Be3 {[%emt 0:18:22]} Rc8 {[%emt 0:06:26]} 13. a4 {[%emt 0:06:15]} b6 {[%emt 0:06:39]} 14. b3 {[%emt 0:01:01]} Bxd3 {[%emt 0:00:14]} 15. Qxd3 {[%emt 0:00:17]} Qb7 {[%emt 0:01:13]} 16. Rad1 {[%emt 0:15:04]} h5 {[%emt 0:10:18]} 17. Nd5 {[%emt 0:01:48]} Nxd5 {[%emt 0:02:07]} 18. exd5 {[%emt 0:00:02]} h4 {[%emt 0:04:28]} 19. c4 {[%emt 0:04:33]} b5 {[%emt 0:04:59]} 20. cxb5 {[%emt 0:02:34]} axb5 {[%emt 0:00:05]} 21. axb5 {[%emt 0:02:49]} h3 {[%emt 0:00:25]} 22. g3 {[%emt 0:04:55]} Bd8 {[%emt 0:03:03]} 23. Nc3 {[%emt 0:01:17]} Nf6 {[%emt 0:07:29]} 24. Bg5 {[%emt 0:00:40]} Ba5 {[%emt 0:00:30]} 25. Ne2 {[%emt 0:02:35]} Rc5 {[%emt 0:00:31]} 26. Bxf6 {[%emt 0:01:12]} gxf6 {[%emt 0:00:16]} 27. g4 {[%emt 0:02:41]} Rxb5 {[%emt 0:02:09]} 28. Rf3 {[%emt 0:00:08]} Rh4 {[%emt 0:03:48]} 29. Rg3 {[%emt 0:00:57]} Ke7 {[%emt 0:01:56]} 30. Qf3 {[%emt 0:01:55]} Rb4 {[%emt 0:11:38]} 31. g5 {[%emt 0:00:21]} Bb6 {[%emt 0:10:18]} 32. g6 {[%emt 0:01:11]} Kf8 {[%emt 0:01:29]} 33. Rxh3 {[%emt 0:01:11]} Bc5 {[%emt 0:00:33]} 34. Qg3 {[%emt 0:02:00]} Rhg4 {[%emt 0:01:17]} 35. Rh8+ {[%emt 0:00:07]} Ke7 {[%emt 0:00:33]} 36. gxf7 {[%emt 0:00:47]} Kxf7 {[%emt 0:00:49]} 37. Rh7+ {[%emt 0:00:07]} 1-0

[Event "ESP-chT Primera Division 2019"]
[Site "Linares"]
[Date "2019.08.30"]
[Round "5.9"]
[White "Vergara Anton, Diego"]
[Black "Alonso Moyano, Jonathan"]
[Result "1/2-1/2"]
[ECO "A46"]
[WhiteElo "2128"]
[BlackElo "2358"]
[Annotator "NA"]
[PlyCount "65"]
[EventDate "2019.08.26"]
[EventType "team-tourn"]
[EventCountry "ESP"]
[SourceTitle "playchess.com"]
[Source "ChessBase"]
[SourceQuality "1"]
[TimeControl "5400+30"]

1. d4 {[%emt 0:00:00]} Nf6 {[%emt 0:00:00]} 2. Nf3 {[%emt 0:00:00]} e6 {[%emt 0:00:00]} 3. g3 {[%emt 0:00:00]} b5 {[%emt 0:00:00]} 4. e3 {[%emt 0:00:31]} a6 {[%emt 0:00:52]} 5. a4 {[%emt 0:02:07]} b4 {[%emt 0:01:21]} 6. c4 {[%emt 0:01:16]} Bb7 {[%emt 0:01:42]} 7. Bg2 {[%emt 0:01:10]} Be7 {[%emt 0:03:01]} 8. O-O {[%emt 0:00:54]} O-O {[%emt 0:00:07]} 9. Nbd2 {[%emt 0:02:50]} d6 {[%emt 0:11:52]} 10. b3 {[%emt 0:03:00]} Nbd7 {[%emt 0:03:08]} 11. Bb2 {[%emt 0:03:05]} c5 {[%emt 0:09:50]} 12. Qe2 {[%emt 0:05:00]} Re8 {[%emt 0:05:40]} 13. Rac1 {[%emt 0:05:06]} Bf8 {[%emt 0:11:40]} 14. Rfd1 {[%emt 0:05:32]} Qc7 {[%emt 0:08:20]} 15. Qd3 {[%emt 0:06:43]} Rad8 {[%emt 0:03:55]} 16. Qb1 {[%emt 0:00:24]} Qb8 {[%emt 0:03:48]} 17. Ne1 {[%emt 0:08:33]} Bxg2 {[%emt 0:02:08]} 18. Nxg2 {[%emt 0:02:13]} Qb7 {[%emt 0:09:25]} 19. Qa1 {[%emt 0:12:31]} Ne4 {[%emt 0:03:44]} 20. Nxe4 {[%emt 0:00:28]} Qxe4 {[%emt 0:00:06]} 21. Qb1 {[%emt 0:02:25]} Qxb1 {[%emt 0:08:03]} 22. Rxb1 {[%emt 0:00:01]} a5 {[%emt 0:01:22]} 23. h4 {[%emt 0:01:32]} g6 {[%emt 0:02:49]} 24. dxc5 {[%emt 0:16:22]} Nxc5 {[%emt 0:01:01]} 25. Bd4 {[%emt 0:00:47]} Nd7 {[%emt 0:03:10]} 26. Rd2 {[%emt 0:03:42]} Rc8 {[%emt 0:00:41]} 27. e4 {[%emt 0:01:49]} Rc6 {[%emt 0:00:56]} 28. Rbd1 {[%emt 0:01:09]} Ra8 {[%emt 0:00:44]} 29. f3 {[%emt 0:01:36]} Raa6 {[%emt 0:00:52]} 30. Ne1 {[%emt 0:00:37]} Bg7 {[%emt 0:01:32]} 31. Bxg7 {[%emt 0:01:11]} Kxg7 {[%emt 0:00:02]} 32. Nd3 {[%emt 0:01:01]} d5 {[%emt 0:01:03]} 33. exd5 {[%emt 0:02:05]} 1/2-1/2

[Event "ESP-chT Primera Division 2019"]
[Site "Linares"]
[Date "2019.08.30"]
[Round "5.10"]
[White "Martinez Ramirez, Erik"]
[Black "Gonzalez Guedes, Iyan"]
[Result "1/2-1/2"]
[ECO "B51"]
[WhiteElo "2217"]
[BlackElo "2115"]
[Annotator "NA"]
[PlyCount "115"]
[EventDate "2019.08.26"]
[EventType "team-tourn"]
[EventCountry "ESP"]
[SourceTitle "playchess.com"]
[Source "ChessBase"]
[SourceQuality "1"]
[TimeControl "5400+30"]

1. e4 {[%emt 0:00:00]} c5 {[%emt 0:00:00]} 2. Nf3 {[%emt 0:00:00]} d6 {[%emt 0:00:00]} 3. Bb5+ {[%emt 0:00:00]} Nd7 {[%emt 0:00:23]} 4. d4 {[%emt 0:00:26]} cxd4 {[%emt 0:00:18]} 5. Qxd4 {[%emt 0:00:07]} a6 {[%emt 0:00:18]} 6. Bxd7+ {[%emt 0:00:09]} Bxd7 {[%emt 0:00:02]} 7. c4 {[%emt 0:00:16]} Rc8 {[%emt 0:01:28]} 8. Nc3 {[%emt 0:02:35]} e5 {[%emt 0:01:46]} 9. Qd3 {[%emt 0:00:09]} h6 {[%emt 0:05:14]} 10. O-O {[%emt 0:00:24]} Nf6 {[%emt 0:00:41]} 11. a4 {[%emt 0:00:20]} Be6 {[%emt 0:01:22]} 12. b3 {[%emt 0:01:41]} Be7 {[%emt 0:00:44]} 13. Ba3 {[%emt 0:01:00]} Qb6 {[%emt 0:10:55]} 14. Rab1 {[%emt 0:03:57]} O-O {[%emt 0:01:36]} 15. Nxe5 {[%emt 0:04:10]} Rfd8 {[%emt 0:08:03]} 16. Nd5 {[%emt 0:16:51]} Bxd5 {[%emt 0:13:40]} 17. cxd5 {[%emt 0:01:39]} Re8 {[%emt 0:06:05]} 18. Nc4 {[%emt 0:00:25]} Qd8 {[%emt 0:00:47]} 19. a5 {[%emt 0:03:45]} Bf8 {[%emt 0:02:07]} 20. Rfe1 {[%emt 0:02:40]} g6 {[%emt 0:02:28]} 21. Rbd1 {[%emt 0:04:59]} Nd7 {[%emt 0:12:13]} 22. f4 {[%emt 0:05:06]} Nc5 {[%emt 0:04:03]} 23. Bxc5 {[%emt 0:03:56]} Rxc5 {[%emt 0:00:05]} 24. e5 {[%emt 0:00:34]} g5 {[%emt 0:02:39]} 25. exd6 {[%emt 0:13:57]} Rxe1+ {[%emt 0:00:35]} 26. Rxe1 {[%emt 0:00:07]} Bxd6 {[%emt 0:01:39]} 27. fxg5 {[%emt 0:05:00]} Rxd5 {[%emt 0:01:27]} 28. Qxd5 {[%emt 0:04:28]} Bxh2+ {[%emt 0:00:08]} 29. Kxh2 {[%emt 0:00:52]} Qxd5 {[%emt 0:00:01]} 30. gxh6 {[%emt 0:01:00]} Qh5+ {[%emt 0:01:01]} 31. Kg1 {[%emt 0:00:23]} Qxh6 {[%emt 0:00:29]} 32. Re3 {[%emt 0:00:08]} f5 {[%emt 0:03:09]} 33. g3 {[%emt 0:00:09]} f4 {[%emt 0:02:16]} 34. gxf4 {[%emt 0:00:18]} Qxf4 {[%emt 0:00:57]} 35. Kg2 {[%emt 0:00:09]} Kg7 {[%emt 0:01:55]} 36. Rg3+ {[%emt 0:00:24]} Kh7 {[%emt 0:00:25]} 37. Rf3 {[%emt 0:00:36]} Qe4 {[%emt 0:00:51]} 38. Kf2 {[%emt 0:01:10]} Kg6 {[%emt 0:01:13]} 39. Re3 {[%emt 0:01:07]} Qd4 {[%emt 0:01:21]} 40. Ke2 {[%emt 0:00:47]} Kf5 {[%emt 0:00:48]} 41. Rd3 {[%emt 0:00:10]} Qc5 {[%emt 0:02:46]} 42. Kd2 {[%emt 0:00:46]} Qb4+ {[%emt 0:00:54]} 43. Kc2 {[%emt 0:01:02]} Ke6 {[%emt 0:00:52]} 44. Rd4 {[%emt 0:03:02]} Ke7 {[%emt 0:01:57]} 45. Rh4 {[%emt 0:02:51]} Kd8 {[%emt 0:01:53]} 46. Rh8+ {[%emt 0:03:56]} Kd7 {[%emt 0:00:53]} 47. Nb6+ {[%emt 0:01:32]} Kd6 {[%emt 0:00:58]} 48. Rh6+ {[%emt 0:03:04]} Ke5 {[%emt 0:00:55]} 49. Nc4+ {[%emt 0:01:14]} Kd4 {[%emt 0:00:33]} 50. Rh4+ {[%emt 0:03:43]} Kc5 {[%emt 0:00:19]} 51. Re4 {[%emt 0:00:19]} Kd5 {[%emt 0:00:56]} 52. Re3 {[%emt 0:00:53]} Kd4 {[%emt 0:01:32]} 53. Rd3+ {[%emt 0:00:06]} Kc5 {[%emt 0:00:27]} 54. Kb2 {[%emt 0:00:40]} Qe1 {[%emt 0:01:02]} 55. Rd7 {[%emt 0:02:49]} Kc6 {[%emt 0:00:48]} 56. Rd6+ {[%emt 0:00:18]} Kc7 {[%emt 0:00:19]} 57. Rb6 {[%emt 0:01:17]} Qf2+ {[%emt 0:00:53]} 58. Ka3 {[%emt 0:02:00]} 1/2-1/2

[Event "ESP-chT Primera Division 2019"]
[Site "Linares"]
[Date "2019.08.30"]
[Round "5.11"]
[White "Badillo Ramos, Steve"]
[Black "Rivas Garcia, Victor"]
[Result "0-1"]
[ECO "C06"]
[WhiteElo "1967"]
[BlackElo "2165"]
[Annotator "NA"]
[PlyCount "48"]
[EventDate "2019.08.26"]
[EventType "team-tourn"]
[EventCountry "ESP"]
[SourceTitle "playchess.com"]
[Source "ChessBase"]
[SourceQuality "1"]
[TimeControl "5400+30"]

1. e4 {[%emt 0:00:00]} e6 {[%emt 0:00:00]} 2. d4 {[%emt 0:00:15]} d5 {[%emt 0:00:00]} 3. Nd2 {[%emt 0:00:25]} Nf6 {[%emt 0:00:00]} 4. e5 {[%emt 0:00:20]} Nfd7 {[%emt 0:00:01]} 5. Bd3 {[%emt 0:00:30]} c5 {[%emt 0:00:07]} 6. c3 {[%emt 0:00:14]} Nc6 {[%emt 0:00:08]} 7. Ne2 {[%emt 0:01:01]} cxd4 {[%emt 0:00:19]} 8. cxd4 {[%emt 0:00:09]} f6 {[%emt 0:00:33]} 9. exf6 {[%emt 0:00:10]} Nxf6 {[%emt 0:00:07]} 10. O-O {[%emt 0:00:11]} Bd6 {[%emt 0:00:35]} 11. Nf3 {[%emt 0:00:10]} Qc7 {[%emt 0:00:25]} 12. Bg5 {[%emt 0:00:31]} O-O {[%emt 0:00:11]} 13. Bh4 {[%emt 0:00:04]} Nh5 {[%emt 0:06:13]} 14. Qc2 {[%emt 0:02:26]} h6 {[%emt 0:00:47]} 15. Bh7+ {[%emt 0:00:41]} Kh8 {[%emt 0:00:13]} 16. Bg6 {[%emt 0:00:17]} Nf4 {[%emt 0:05:55]} 17. Nxf4 {[%emt 0:04:55]} Bxf4 {[%emt 0:04:24]} 18. Bg3 {[%emt 0:02:46]} Qb6 {[%emt 0:10:35]} 19. Qd3 {[%emt 0:26:41]} Bd7 {[%emt 0:05:12]} 20. Rfe1 {[%emt 0:12:33]} Bxg3 {[%emt 0:14:45]} 21. hxg3 {[%emt 0:04:46]} Rf6 {[%emt 0:03:14]} 22. g4 {[%emt 0:03:59]} e5 {[%emt 0:07:58]} 23. Nxe5 {[%emt 0:00:46]} Nxe5 {[%emt 0:00:13]} 24. Rxe5 {[%emt 0:00:07]} Rxg6 {[%emt 0:00:20]} 0-1